[Event "Titled Tuesday Blitz March 14 Early 2023"]
[White "Valle Maytin, Luis Enrique"]
[Black "ritanovikova"]
[WhiteFideId "3503666"]
[WhiteElo "2225"]
[BlackElo "2163"]
[Result "1/2-1/2"]
[Round "11"]
[TimeControl "180+2"]
[Date "2023.03.14"]
[WhiteClock "0:00:05"]
[BlackClock "0:00:04"]

1. e4 {[%clk 0:03:00]}  d5 {[%clk 0:03:00]} 2. exd5 {[%clk 0:03:00]}  Qxd5 {[%clk 0:03:00]} 3. Nc3 {[%clk 0:03:01]}  Qd6 {[%clk 0:03:00]} 4. Bc4 {[%clk 0:03:02]}  Nf6 {[%clk 0:03:00]} 5. d3 {[%clk 0:03:02]}  a6 {[%clk 0:03:00]} 6. Bd2 {[%clk 0:03:02]}  Nc6 {[%clk 0:03:00]} 7. h3 {[%clk 0:02:56]}  Na5 {[%clk 0:02:59]} 8. Bb3 {[%clk 0:02:55]}  Nxb3 {[%clk 0:02:59]} 9. axb3 {[%clk 0:02:56]}  Bf5 {[%clk 0:02:56]} 10. Qe2 {[%clk 0:02:55]}  e6 {[%clk 0:02:55]} 11. Nf3 {[%clk 0:02:55]}  Be7 {[%clk 0:02:50]} 12. Nh4 {[%clk 0:02:52]}  Bg6 {[%clk 0:02:49]} 13. Nxg6 {[%clk 0:02:42]}  hxg6 {[%clk 0:02:50]} 14. Ra4 {[%clk 0:02:36]}  Nd5 {[%clk 0:02:41]} 15. Nxd5 {[%clk 0:02:29]}  Qxd5 {[%clk 0:02:40]} 16. O-O {[%clk 0:02:18]}  O-O {[%clk 0:02:29]} 17. Bf4 {[%clk 0:02:16]}  Bd6 {[%clk 0:02:26]} 18. Be3 {[%clk 0:02:09]}  Qe5 {[%clk 0:02:18]} 19. f4 {[%clk 0:02:08]}  Qd5 {[%clk 0:02:12]} 20. Qf2 {[%clk 0:02:08]}  Qc6 {[%clk 0:01:54]} 21. Rc4 {[%clk 0:02:07]}  Qd7 {[%clk 0:01:54]} 22. d4 {[%clk 0:01:33]}  b5 {[%clk 0:01:49]} 23. Rc3 {[%clk 0:01:33]}  Rac8 {[%clk 0:01:48]} 24. Rd1 {[%clk 0:01:33]}  Qe7 {[%clk 0:01:44]} 25. d5 {[%clk 0:01:27]}  exd5 {[%clk 0:01:38]} 26. Rxd5 {[%clk 0:01:28]}  Qe4 {[%clk 0:01:31]} 27. Rd4 {[%clk 0:01:25]}  Qe8 {[%clk 0:01:30]} 28. Rd1 {[%clk 0:01:22]}  Qe6 {[%clk 0:01:24]} 29. Rcd3 {[%clk 0:01:03]}  Be7 {[%clk 0:01:17]} 30. Re1 {[%clk 0:00:46]}  Qc6 {[%clk 0:00:59]} 31. f5 {[%clk 0:00:36]}  gxf5 {[%clk 0:00:49]} 32. Qxf5 {[%clk 0:00:34]}  Bd6 {[%clk 0:00:39]} 33. Bd4 {[%clk 0:00:27]}  Rce8 {[%clk 0:00:35]} 34. Rf1 {[%clk 0:00:20]}  Re6 {[%clk 0:00:33]} 35. c3 {[%clk 0:00:14]}  Rg6 {[%clk 0:00:28]} 36. Rdf3 {[%clk 0:00:12]}  Qe8 {[%clk 0:00:17]} 37. Re3 {[%clk 0:00:10]}  Qc8 {[%clk 0:00:16]} 38. Qxc8 {[%clk 0:00:07]}  Rxc8 {[%clk 0:00:17]} 39. g4 {[%clk 0:00:06]}  Kf8 {[%clk 0:00:16]} 40. Kg2 {[%clk 0:00:06]}  Kg8 {[%clk 0:00:15]} 41. Ref3 {[%clk 0:00:07]}  Rf8 {[%clk 0:00:14]} 42. Rf5 {[%clk 0:00:07]}  Re6 {[%clk 0:00:13]} 43. R5f2 {[%clk 0:00:07]}  f6 {[%clk 0:00:14]} 44. Rd2 {[%clk 0:00:07]}  c5 {[%clk 0:00:14]} 45. Bg1 {[%clk 0:00:06]}  Rfe8 {[%clk 0:00:14]} 46. Rfd1 {[%clk 0:00:05]}  Bf8 {[%clk 0:00:14]} 47. Kf3 {[%clk 0:00:05]}  Kf7 {[%clk 0:00:12]} 48. Rd7+ {[%clk 0:00:05]}  R8e7 {[%clk 0:00:12]} 49. Rxe7+ {[%clk 0:00:06]}  Rxe7 {[%clk 0:00:12]} 50. Rd5 {[%clk 0:00:06]}  Re8 {[%clk 0:00:12]} 51. Bxc5 {[%clk 0:00:06]}  Rc8 {[%clk 0:00:09]} 52. Be3 {[%clk 0:00:03]}  Ke6 {[%clk 0:00:08]} 53. Rd2 {[%clk 0:00:04]}  Bd6 {[%clk 0:00:08]} 54. Bd4 {[%clk 0:00:04]}  Kf7 {[%clk 0:00:08]} 55. Re2 {[%clk 0:00:04]}  Be7 {[%clk 0:00:08]} 56. b4 {[%clk 0:00:05]}  Rd8 {[%clk 0:00:07]} 57. h4 {[%clk 0:00:05]}  Bxb4 {[%clk 0:00:07]} 58. Bb6 {[%clk 0:00:05]}  Rd6 {[%clk 0:00:06]} 59. Bc7 {[%clk 0:00:05]}  Rd7 {[%clk 0:00:07]} 60. Bf4 {[%clk 0:00:05]}  Bc5 {[%clk 0:00:05]} 61. h5 {[%clk 0:00:05]}  Rd3+ {[%clk 0:00:05]} 62. Kg2 {[%clk 0:00:05]}  Rd1 {[%clk 0:00:05]} 63. Bg3 {[%clk 0:00:05]}  Rg1+ {[%clk 0:00:05]} 64. Kf3 {[%clk 0:00:05]}  Rd1 {[%clk 0:00:05]} 65. Kg2 {[%clk 0:00:02]}  Rd3 {[%clk 0:00:05]} 66. Kh2 {[%clk 0:00:02]}  Bd6 {[%clk 0:00:05]} 67. Bxd6 {[%clk 0:00:03]}  Rxd6 {[%clk 0:00:06]} 68. Kg3 {[%clk 0:00:03]}  Rd3+ {[%clk 0:00:05]} 69. Kf4 {[%clk 0:00:04]}  Rd5 {[%clk 0:00:05]} 70. b4 {[%clk 0:00:03]}  Rd7 {[%clk 0:00:05]} 71. Re3 {[%clk 0:00:03]}  Rc7 {[%clk 0:00:05]} 72. Rd3 {[%clk 0:00:04]}  Rc4+ {[%clk 0:00:06]} 73. Kf5 {[%clk 0:00:04]}  Rc7 {[%clk 0:00:05]} 74. Rd6 {[%clk 0:00:04]}  Rxc3 {[%clk 0:00:05]} 75. Rxa6 {[%clk 0:00:03]}  Rc4 {[%clk 0:00:04]} 76. Ra7+ {[%clk 0:00:03]}  Kf8 {[%clk 0:00:04]} 77. h6 {[%clk 0:00:04]}  gxh6 {[%clk 0:00:04]} 78. Kxf6 {[%clk 0:00:04]}  Rf4+ {[%clk 0:00:03]} 79. Kg6 {[%clk 0:00:04]}  Rxg4+ {[%clk 0:00:04]} 80. Kf6 {[%clk 0:00:05]}  Rf4+ {[%clk 0:00:04]} 81. Kg6 {[%clk 0:00:05]}  Rg4+ {[%clk 0:00:04]} 82. Kf6 {[%clk 0:00:05]}  Rf4+ {[%clk 0:00:04]} 83. Kg6 {[%clk 0:00:05]}  Rg4+ {[%clk 0:00:04]} 1/2-1/2


[Site "https://www.chess.com"]

[Event "Titled Tuesday Blitz March 14 Early 2023"]
[White "Zhurova, Anna"]
[Black "Senft, Sean"]
[WhiteFideId "54113075"]
[BlackFideId "2044960"]
[WhiteElo "2031"]
[BlackElo "1989"]
[Result "1-0"]
[Round "11"]
[TimeControl "180+2"]
[Date "2023.03.14"]
[WhiteClock "0:00:17"]
[BlackClock "0:00:50"]

1. e4 {[%clk 0:03:00]}  e5 {[%clk 0:02:59]} 2. Nf3 {[%clk 0:03:00]}  Nc6 {[%clk 0:02:59]} 3. Bb5 {[%clk 0:03:00]}  Nf6 {[%clk 0:02:59]} 4. O-O {[%clk 0:02:59]}  Nxe4 {[%clk 0:03:00]} 5. Re1 {[%clk 0:02:59]}  Nd6 {[%clk 0:02:59]} 6. a4 {[%clk 0:02:59]}  Be7 {[%clk 0:02:56]} 7. Nc3 {[%clk 0:02:58]}  O-O {[%clk 0:02:56]} 8. d4 {[%clk 0:02:58]}  exd4 {[%clk 0:02:55]} 9. Nd5 {[%clk 0:02:57]}  Re8 {[%clk 0:02:48]} 10. Bf4 {[%clk 0:02:57]}  Bf6 {[%clk 0:02:45]} 11. Bxd6 {[%clk 0:02:29]}  Rxe1+ {[%clk 0:02:44]} 12. Qxe1 {[%clk 0:02:16]}  cxd6 {[%clk 0:02:42]} 13. Nxf6+ {[%clk 0:02:11]}  gxf6 {[%clk 0:02:41]} 14. Qe4 {[%clk 0:02:07]}  Ne5 {[%clk 0:02:30]} 15. Nxd4 {[%clk 0:02:04]}  a6 {[%clk 0:02:21]} 16. Be2 {[%clk 0:01:34]}  d5 {[%clk 0:02:19]} 17. Qxd5 {[%clk 0:01:23]}  d6 {[%clk 0:02:19]} 18. Rd1 {[%clk 0:01:17]}  Qc7 {[%clk 0:02:15]} 19. c3 {[%clk 0:01:13]}  Bd7 {[%clk 0:02:13]} 20. Qe4 {[%clk 0:00:54]}  Re8 {[%clk 0:02:04]} 21. Qh4 {[%clk 0:00:52]}  f5 {[%clk 0:01:55]} 22. Qg5+ {[%clk 0:00:46]}  Ng6 {[%clk 0:01:51]} 23. Bd3 {[%clk 0:00:42]}  Qa5 {[%clk 0:01:40]} 24. h4 {[%clk 0:00:40]}  f6 {[%clk 0:01:17]} 25. Qxf6 {[%clk 0:00:38]}  Qe5 {[%clk 0:01:18]} 26. Qxe5 {[%clk 0:00:31]}  Rxe5 {[%clk 0:01:19]} 27. Nf3 {[%clk 0:00:23]}  Re7 {[%clk 0:01:10]} 28. Bc4+ {[%clk 0:00:22]}  Kf8 {[%clk 0:01:06]} 29. Rxd6 {[%clk 0:00:22]}  Bxa4 {[%clk 0:01:05]} 30. Rf6+ {[%clk 0:00:20]}  Kg7 {[%clk 0:01:02]} 31. Rxf5 {[%clk 0:00:20]}  h6 {[%clk 0:00:59]} 32. h5 {[%clk 0:00:20]}  Nf8 {[%clk 0:00:57]} 33. Rf4 {[%clk 0:00:19]}  Nd7 {[%clk 0:00:56]} 34. Rg4+ {[%clk 0:00:19]}  Kf6 {[%clk 0:00:53]} 35. Rg6+ {[%clk 0:00:18]}  Kf5 {[%clk 0:00:54]} 36. Rxh6 {[%clk 0:00:18]}  Ne5 {[%clk 0:00:53]} 37. Nxe5 {[%clk 0:00:14]}  Rxe5 {[%clk 0:00:50]} 38. Rg6 {[%clk 0:00:13]}  Bc2 {[%clk 0:00:48]} 39. Rg3 {[%clk 0:00:12]}  Re1+ {[%clk 0:00:48]} 40. Kh2 {[%clk 0:00:13]}  Re5 {[%clk 0:00:47]} 41. Bd3+ {[%clk 0:00:13]}  Bxd3 {[%clk 0:00:47]} 42. Rxd3 {[%clk 0:00:14]}  Ke4 {[%clk 0:00:48]} 43. Re3+ {[%clk 0:00:14]}  Kd5 {[%clk 0:00:47]} 44. Rxe5+ {[%clk 0:00:15]}  Kxe5 {[%clk 0:00:48]} 45. g4 {[%clk 0:00:15]}  a5 {[%clk 0:00:47]} 46. h6 {[%clk 0:00:15]}  Kf6 {[%clk 0:00:47]} 47. g5+ {[%clk 0:00:16]}  Kg6 {[%clk 0:00:47]} 48. Kg3 {[%clk 0:00:16]}  b5 {[%clk 0:00:48]} 49. Kf3 {[%clk 0:00:16]}  a4 {[%clk 0:00:48]} 50. Ke3 {[%clk 0:00:17]}  b4 {[%clk 0:00:49]} 51. cxb4 {[%clk 0:00:17]}  a3 {[%clk 0:00:50]} 52. bxa3 {[%clk 0:00:17]} 1-0


[Site "https://www.chess.com"]

[Event "Titled Tuesday Blitz March 14 Early 2023"]
[White "Sarkar, Justin"]
[Black "Zaichenko, Daria"]
[WhiteFideId "2010011"]
[BlackFideId "4197453"]
[WhiteElo "2189"]
[BlackElo "2039"]
[Result "1-0"]
[Round "11"]
[TimeControl "180+2"]
[Date "2023.03.14"]
[WhiteClock "0:00:11"]
[BlackClock "0:01:11"]

1. d4 {[%clk 0:02:27]}  d5 {[%clk 0:03:00]} 2. c4 {[%clk 0:02:18]}  e6 {[%clk 0:03:00]} 3. Nc3 {[%clk 0:02:17]}  Be7 {[%clk 0:03:00]} 4. Nf3 {[%clk 0:02:15]}  Nf6 {[%clk 0:02:59]} 5. Bg5 {[%clk 0:02:14]}  O-O {[%clk 0:02:57]} 6. e3 {[%clk 0:02:13]}  Nbd7 {[%clk 0:02:55]} 7. Rc1 {[%clk 0:02:08]}  c5 {[%clk 0:02:46]} 8. cxd5 {[%clk 0:01:59]}  Nxd5 {[%clk 0:02:41]} 9. Bxe7 {[%clk 0:01:58]}  Nxe7 {[%clk 0:02:24]} 10. Bb5 {[%clk 0:01:48]}  cxd4 {[%clk 0:02:22]} 11. Qxd4 {[%clk 0:01:47]}  a6 {[%clk 0:02:19]} 12. Bd3 {[%clk 0:01:39]}  Nc6 {[%clk 0:02:13]} 13. Qh4 {[%clk 0:01:14]}  Qxh4 {[%clk 0:02:07]} 14. Nxh4 {[%clk 0:01:14]}  Nde5 {[%clk 0:02:05]} 15. Bb1 {[%clk 0:01:01]}  g5 {[%clk 0:02:02]} 16. Nf3 {[%clk 0:00:59]}  Nxf3+ {[%clk 0:02:02]} 17. gxf3 {[%clk 0:01:00]}  h6 {[%clk 0:01:56]} 18. h4 {[%clk 0:00:58]}  f6 {[%clk 0:01:46]} 19. hxg5 {[%clk 0:00:55]}  hxg5 {[%clk 0:01:47]} 20. Ke2 {[%clk 0:00:52]}  Bd7 {[%clk 0:01:38]} 21. f4 {[%clk 0:00:33]}  gxf4 {[%clk 0:01:21]} 22. Rcg1+ {[%clk 0:00:28]}  Kf7 {[%clk 0:01:20]} 23. Rh7+ {[%clk 0:00:27]}  Ke8 {[%clk 0:01:20]} 24. Rgg7 {[%clk 0:00:19]}  Kd8 {[%clk 0:01:20]} 25. Rxd7+ {[%clk 0:00:17]}  Kc8 {[%clk 0:01:17]} 26. Rc7+ {[%clk 0:00:17]}  Kb8 {[%clk 0:01:15]} 27. Rxb7+ {[%clk 0:00:18]}  Kc8 {[%clk 0:01:14]} 28. Rhc7+ {[%clk 0:00:14]}  Kd8 {[%clk 0:01:14]} 29. Rxc6 {[%clk 0:00:15]}  Rc8 {[%clk 0:01:10]} 30. Rxc8+ {[%clk 0:00:12]}  Kxc8 {[%clk 0:01:11]} 31. Rb6 {[%clk 0:00:12]}  fxe3 {[%clk 0:01:11]} 32. fxe3 {[%clk 0:00:12]}  e5 {[%clk 0:01:11]} 33. Rxa6 {[%clk 0:00:11]} 1-0


[Site "https://www.chess.com"]

[Event "Titled Tuesday Blitz March 14 Early 2023"]
[White "Quirke, Jeffrey"]
[Black "Jiganchine, Roman"]
[WhiteFideId "2013029"]
[BlackFideId "2603667"]
[WhiteElo "2223"]
[BlackElo "2326"]
[Result "1-0"]
[Round "11"]
[TimeControl "180+2"]
[Date "2023.03.14"]
[WhiteClock "0:00:07"]
[BlackClock "0:00:08"]

1. e4 {[%clk 0:03:00]}  c6 {[%clk 0:02:57]} 2. d4 {[%clk 0:03:00]}  d5 {[%clk 0:02:57]} 3. exd5 {[%clk 0:03:00]}  cxd5 {[%clk 0:02:57]} 4. Bf4 {[%clk 0:02:57]}  Nc6 {[%clk 0:02:54]} 5. c3 {[%clk 0:02:57]}  Bf5 {[%clk 0:02:52]} 6. Bd3 {[%clk 0:02:54]}  Bxd3 {[%clk 0:02:50]} 7. Qxd3 {[%clk 0:02:54]}  e6 {[%clk 0:02:51]} 8. Nd2 {[%clk 0:02:53]}  Nf6 {[%clk 0:02:50]} 9. Ngf3 {[%clk 0:02:52]}  Bd6 {[%clk 0:02:49]} 10. Bxd6 {[%clk 0:02:51]}  Qxd6 {[%clk 0:02:49]} 11. O-O {[%clk 0:02:52]}  O-O {[%clk 0:02:49]} 12. Rfe1 {[%clk 0:02:50]}  Rab8 {[%clk 0:02:40]} 13. Ne5 {[%clk 0:02:48]}  Nd7 {[%clk 0:02:29]} 14. Nxd7 {[%clk 0:02:39]}  Qxd7 {[%clk 0:02:29]} 15. Qe2 {[%clk 0:02:38]}  b5 {[%clk 0:02:27]} 16. a3 {[%clk 0:02:38]}  a5 {[%clk 0:02:26]} 17. Nb3 {[%clk 0:02:38]}  b4 {[%clk 0:02:14]} 18. cxb4 {[%clk 0:02:38]}  axb4 {[%clk 0:02:14]} 19. a4 {[%clk 0:02:38]}  Qa7 {[%clk 0:02:06]} 20. Qd3 {[%clk 0:02:37]}  Rfc8 {[%clk 0:01:59]} 21. Rec1 {[%clk 0:02:35]}  g6 {[%clk 0:01:49]} 22. h3 {[%clk 0:02:30]}  Kg7 {[%clk 0:01:39]} 23. a5 {[%clk 0:02:26]}  Ne7 {[%clk 0:01:24]} 24. Rxc8 {[%clk 0:02:22]}  Rxc8 {[%clk 0:01:22]} 25. a6 {[%clk 0:02:21]}  Rc4 {[%clk 0:01:13]} 26. Nc5 {[%clk 0:01:38]}  Nc6 {[%clk 0:01:08]} 27. b3 {[%clk 0:01:26]}  Rxd4 {[%clk 0:01:06]} 28. Qb5 {[%clk 0:01:26]}  Ne5 {[%clk 0:00:28]} 29. Qb7 {[%clk 0:01:16]}  Qxc5 {[%clk 0:00:27]} 30. a7 {[%clk 0:01:16]}  Rd2 {[%clk 0:00:21]} 31. Rf1 {[%clk 0:01:13]}  Nd3 {[%clk 0:00:18]} 32. a8=Q {[%clk 0:01:11]}  Nxf2 {[%clk 0:00:18]} 33. Qaa7 {[%clk 0:00:57]}  Nxh3+ {[%clk 0:00:17]} 34. Kh2 {[%clk 0:00:57]}  Qd6+ {[%clk 0:00:16]} 35. Kxh3 {[%clk 0:00:44]}  Rd3+ {[%clk 0:00:13]} 36. Rf3 {[%clk 0:00:44]}  Rxf3+ {[%clk 0:00:10]} 37. gxf3 {[%clk 0:00:44]}  Qf4 {[%clk 0:00:11]} 38. Qf2 {[%clk 0:00:29]}  Qh6+ {[%clk 0:00:07]} 39. Kg2 {[%clk 0:00:29]}  Qg5+ {[%clk 0:00:07]} 40. Kf1 {[%clk 0:00:25]}  Qc1+ {[%clk 0:00:07]} 41. Qe1 {[%clk 0:00:24]}  Qf4 {[%clk 0:00:05]} 42. Qe2 {[%clk 0:00:17]}  Qc1+ {[%clk 0:00:05]} 43. Kf2 {[%clk 0:00:17]}  Qc5+ {[%clk 0:00:05]} 44. Kg2 {[%clk 0:00:18]}  Qd4 {[%clk 0:00:05]} 45. Qba6 {[%clk 0:00:13]}  Qf4 {[%clk 0:00:03]} 46. Qad3 {[%clk 0:00:13]}  Qg5+ {[%clk 0:00:03]} 47. Kf2 {[%clk 0:00:13]}  Qh4+ {[%clk 0:00:03]} 48. Kf1 {[%clk 0:00:13]}  Qh1+ {[%clk 0:00:03]} 49. Kf2 {[%clk 0:00:13]}  Qh4+ {[%clk 0:00:04]} 50. Ke3 {[%clk 0:00:13]}  Qg5+ {[%clk 0:00:04]} 51. f4 {[%clk 0:00:14]}  Qg3+ {[%clk 0:00:03]} 52. Kd2 {[%clk 0:00:14]}  Qxf4+ {[%clk 0:00:03]} 53. Kc2 {[%clk 0:00:14]}  Qf6 {[%clk 0:00:03]} 54. Qed2 {[%clk 0:00:13]}  h5 {[%clk 0:00:03]} 55. Qd4 {[%clk 0:00:13]}  h4 {[%clk 0:00:02]} 56. Qxf6+ {[%clk 0:00:12]}  Kxf6 {[%clk 0:00:03]} 57. Qf4+ {[%clk 0:00:12]}  Kg7 {[%clk 0:00:02]} 58. Qxh4 {[%clk 0:00:13]}  e5 {[%clk 0:00:02]} 59. Qxb4 {[%clk 0:00:11]}  d4 {[%clk 0:00:02]} 60. Qc5 {[%clk 0:00:11]}  Kf6 {[%clk 0:00:02]} 61. Qd6+ {[%clk 0:00:10]}  Kf5 {[%clk 0:00:02]} 62. b4 {[%clk 0:00:10]}  g5 {[%clk 0:00:03]} 63. b5 {[%clk 0:00:10]}  g4 {[%clk 0:00:03]} 64. b6 {[%clk 0:00:10]}  g3 {[%clk 0:00:04]} 65. Qe7 {[%clk 0:00:10]}  g2 {[%clk 0:00:05]} 66. Qxf7+ {[%clk 0:00:10]}  Ke4 {[%clk 0:00:05]} 67. Qg6+ {[%clk 0:00:10]}  Kf3 {[%clk 0:00:05]} 68. b7 {[%clk 0:00:10]}  Kf2 {[%clk 0:00:05]} 69. b8=Q {[%clk 0:00:08]}  g1=Q {[%clk 0:00:06]} 70. Qxg1+ {[%clk 0:00:08]}  Kxg1 {[%clk 0:00:07]} 71. Qxe5 {[%clk 0:00:08]}  Kf2 {[%clk 0:00:08]} 72. Qxd4+ {[%clk 0:00:08]}  Kf3 {[%clk 0:00:08]} 73. Qe5 {[%clk 0:00:07]} 1-0


[Site "https://www.chess.com"]

[Event "Titled Tuesday Blitz March 14 Early 2023"]
[White "Aanan, Shafiuddin"]
[Black "MunichMouse"]
[WhiteFideId "3242633"]
[WhiteElo "1648"]
[BlackElo "2293"]
[Result "0-1"]
[Round "11"]
[TimeControl "180+2"]
[Date "2023.03.14"]
[WhiteClock "0:00:02"]
[BlackClock "0:00:24"]

1. e4 {[%clk 0:03:00]}  c5 {[%clk 0:02:59]} 2. Nf3 {[%clk 0:03:00]}  d6 {[%clk 0:02:59]} 3. d3 {[%clk 0:03:00]}  g6 {[%clk 0:02:59]} 4. g3 {[%clk 0:03:00]}  Bg7 {[%clk 0:02:59]} 5. Bg2 {[%clk 0:03:00]}  Nc6 {[%clk 0:02:59]} 6. O-O {[%clk 0:03:00]}  e5 {[%clk 0:03:00]} 7. c3 {[%clk 0:02:59]}  Nge7 {[%clk 0:03:01]} 8. a3 {[%clk 0:02:59]}  O-O {[%clk 0:03:01]} 9. b4 {[%clk 0:02:59]}  h6 {[%clk 0:02:59]} 10. Nbd2 {[%clk 0:02:57]}  f5 {[%clk 0:02:57]} 11. exf5 {[%clk 0:02:52]}  gxf5 {[%clk 0:02:57]} 12. Nh4 {[%clk 0:02:51]}  Qe8 {[%clk 0:02:55]} 13. Nc4 {[%clk 0:02:49]}  Rf6 {[%clk 0:02:40]} 14. f4 {[%clk 0:02:43]}  Kh7 {[%clk 0:02:29]} 15. b5 {[%clk 0:02:42]}  Nd8 {[%clk 0:02:20]} 16. fxe5 {[%clk 0:02:41]}  dxe5 {[%clk 0:02:21]} 17. Nxe5 {[%clk 0:02:41]}  Qxb5 {[%clk 0:02:21]} 18. c4 {[%clk 0:02:36]}  Qe8 {[%clk 0:02:19]} 19. Ra2 {[%clk 0:02:26]}  Re6 {[%clk 0:02:17]} 20. Nhf3 {[%clk 0:02:07]}  Bxe5 {[%clk 0:02:13]} 21. Nxe5 {[%clk 0:02:04]}  Rxe5 {[%clk 0:02:14]} 22. Raf2 {[%clk 0:02:00]}  Ndc6 {[%clk 0:02:12]} 23. Bf4 {[%clk 0:01:53]}  Re6 {[%clk 0:02:12]} 24. Bd5 {[%clk 0:01:50]}  Rf6 {[%clk 0:02:10]} 25. Qa1 {[%clk 0:01:35]}  Nxd5 {[%clk 0:02:08]} 26. cxd5 {[%clk 0:01:34]}  Nd4 {[%clk 0:02:08]} 27. Re1 {[%clk 0:01:31]}  Qd8 {[%clk 0:02:06]} 28. Be5 {[%clk 0:01:31]}  Rf7 {[%clk 0:02:03]} 29. Bxd4 {[%clk 0:01:31]}  cxd4 {[%clk 0:02:03]} 30. Qxd4 {[%clk 0:01:31]}  Bd7 {[%clk 0:02:01]} 31. d6 {[%clk 0:01:28]}  Qb6 {[%clk 0:02:00]} 32. Qd5 {[%clk 0:01:21]}  Raf8 {[%clk 0:02:00]} 33. Re7 {[%clk 0:01:19]}  Kg7 {[%clk 0:01:43]} 34. d4 {[%clk 0:01:08]}  Qb1+ {[%clk 0:01:22]} 35. Rf1 {[%clk 0:01:01]}  Qd3 {[%clk 0:01:21]} 36. Qe5+ {[%clk 0:00:56]}  Kg8 {[%clk 0:01:20]} 37. d5 {[%clk 0:00:36]}  Bb5 {[%clk 0:01:20]} 38. Re1 {[%clk 0:00:23]}  f4 {[%clk 0:00:54]} 39. Qe6 {[%clk 0:00:16]}  fxg3 {[%clk 0:00:40]} 40. hxg3 {[%clk 0:00:09]}  Qxg3+ {[%clk 0:00:36]} 41. Kh1 {[%clk 0:00:09]}  Qh4+ {[%clk 0:00:36]} 42. Kg1 {[%clk 0:00:09]}  Qg5+ {[%clk 0:00:30]} 43. Kh1 {[%clk 0:00:09]}  Qh5+ {[%clk 0:00:30]} 44. Kg1 {[%clk 0:00:09]}  Bc4 {[%clk 0:00:28]} 45. Rxf7 {[%clk 0:00:06]}  Rxf7 {[%clk 0:00:27]} 46. Qe8+ {[%clk 0:00:06]}  Kh7 {[%clk 0:00:27]} 47. Qe4+ {[%clk 0:00:05]}  Qg6+ {[%clk 0:00:26]} 48. Qxg6+ {[%clk 0:00:03]}  Kxg6 {[%clk 0:00:26]} 49. Re7 {[%clk 0:00:02]}  Rxe7 {[%clk 0:00:25]} 50. dxe7 {[%clk 0:00:02]}  Kf7 {[%clk 0:00:26]} 51. d6 {[%clk 0:00:02]}  b5 {[%clk 0:00:24]} 0-1


[Site "https://www.chess.com"]

[Event "Titled Tuesday Blitz March 14 Early 2023"]
[White "Sadubayev, Airat"]
[Black "Fajdetic, Hrvoje"]
[WhiteFideId "13713264"]
[BlackFideId "14501945"]
[WhiteElo "2129"]
[BlackElo "2185"]
[Result "1-0"]
[Round "11"]
[TimeControl "180+2"]
[Date "2023.03.14"]
[WhiteClock "0:00:19"]
[BlackClock "0:00:03"]

1. d4 {[%clk 0:03:00]}  e6 {[%clk 0:02:42]} 2. c4 {[%clk 0:03:00]}  f5 {[%clk 0:02:42]} 3. Nf3 {[%clk 0:02:59]}  Nf6 {[%clk 0:02:42]} 4. g3 {[%clk 0:02:59]}  d5 {[%clk 0:02:43]} 5. Bg2 {[%clk 0:02:58]}  c6 {[%clk 0:02:43]} 6. O-O {[%clk 0:02:58]}  Bd6 {[%clk 0:02:43]} 7. Nc3 {[%clk 0:02:55]}  O-O {[%clk 0:02:43]} 8. b3 {[%clk 0:02:50]}  Ne4 {[%clk 0:02:43]} 9. Qc2 {[%clk 0:02:48]}  b6 {[%clk 0:02:43]} 10. a4 {[%clk 0:02:47]}  a5 {[%clk 0:02:42]} 11. Ba3 {[%clk 0:02:46]}  Na6 {[%clk 0:02:42]} 12. Bxd6 {[%clk 0:02:45]}  Qxd6 {[%clk 0:02:43]} 13. Ne5 {[%clk 0:02:39]}  Nb4 {[%clk 0:02:42]} 14. Qb2 {[%clk 0:02:36]}  Ba6 {[%clk 0:02:42]} 15. Na2 {[%clk 0:02:24]}  Nxa2 {[%clk 0:02:35]} 16. Rxa2 {[%clk 0:02:20]}  c5 {[%clk 0:02:35]} 17. Rd1 {[%clk 0:02:09]}  Rad8 {[%clk 0:02:12]} 18. dxc5 {[%clk 0:02:03]}  Qxc5 {[%clk 0:02:10]} 19. Nd3 {[%clk 0:02:01]}  Qe7 {[%clk 0:01:58]} 20. cxd5 {[%clk 0:01:57]}  Rxd5 {[%clk 0:01:54]} 21. Raa1 {[%clk 0:01:50]}  Rfd8 {[%clk 0:01:48]} 22. Qc2 {[%clk 0:01:43]}  Qd6 {[%clk 0:01:28]} 23. Bf1 {[%clk 0:01:28]}  Nc5 {[%clk 0:00:51]} 24. Nxc5 {[%clk 0:01:03]}  bxc5 {[%clk 0:00:45]} 25. Rxd5 {[%clk 0:01:01]}  Qxd5 {[%clk 0:00:42]} 26. e4 {[%clk 0:00:57]}  Qd4 {[%clk 0:00:26]} 27. Re1 {[%clk 0:00:49]}  Bxf1 {[%clk 0:00:23]} 28. Kxf1 {[%clk 0:00:49]}  Qd3+ {[%clk 0:00:12]} 29. Qxd3 {[%clk 0:00:48]}  Rxd3 {[%clk 0:00:13]} 30. exf5 {[%clk 0:00:48]}  exf5 {[%clk 0:00:14]} 31. Re3 {[%clk 0:00:45]}  Rd2 {[%clk 0:00:10]} 32. Ke1 {[%clk 0:00:43]}  Rb2 {[%clk 0:00:10]} 33. Rc3 {[%clk 0:00:40]}  g6 {[%clk 0:00:08]} 34. Rxc5 {[%clk 0:00:40]}  Rxb3 {[%clk 0:00:08]} 35. Rxa5 {[%clk 0:00:40]}  Ra3 {[%clk 0:00:09]} 36. Ra7 {[%clk 0:00:39]}  f4 {[%clk 0:00:09]} 37. a5 {[%clk 0:00:32]}  f3 {[%clk 0:00:08]} 38. Kd2 {[%clk 0:00:32]}  g5 {[%clk 0:00:06]} 39. a6 {[%clk 0:00:32]}  g4 {[%clk 0:00:06]} 40. Ra8+ {[%clk 0:00:22]}  Kg7 {[%clk 0:00:06]} 41. a7 {[%clk 0:00:22]}  h5 {[%clk 0:00:06]} 42. Kc2 {[%clk 0:00:20]}  h4 {[%clk 0:00:03]} 43. gxh4 {[%clk 0:00:19]} 1-0


[Site "https://www.chess.com"]

[Event "Titled Tuesday Blitz March 14 Early 2023"]
[White "Wilson, Elvin"]
[Black "Martin, Lewis"]
[WhiteFideId "2014874"]
[BlackFideId "410551"]
[WhiteElo "2272"]
[BlackElo "2145"]
[Result "1-0"]
[Round "11"]
[TimeControl "180+2"]
[Date "2023.03.14"]
[WhiteClock "0:00:31"]
[BlackClock "0:00:38"]

1. c4 {[%clk 0:02:53]}  c6 {[%clk 0:02:32]} 2. g3 {[%clk 0:02:51]}  Nf6 {[%clk 0:02:32]} 3. Bg2 {[%clk 0:02:50]}  d5 {[%clk 0:02:33]} 4. Nf3 {[%clk 0:02:48]}  e6 {[%clk 0:02:29]} 5. O-O {[%clk 0:02:47]}  Nbd7 {[%clk 0:02:29]} 6. b3 {[%clk 0:02:47]}  Bd6 {[%clk 0:02:28]} 7. Bb2 {[%clk 0:02:48]}  Qe7 {[%clk 0:02:28]} 8. d3 {[%clk 0:02:47]}  O-O {[%clk 0:02:28]} 9. Nbd2 {[%clk 0:02:47]}  e5 {[%clk 0:02:26]} 10. e4 {[%clk 0:02:45]}  d4 {[%clk 0:02:26]} 11. Nh4 {[%clk 0:02:39]}  g6 {[%clk 0:02:25]} 12. Ndf3 {[%clk 0:02:14]}  Nh5 {[%clk 0:02:18]} 13. Bc1 {[%clk 0:02:08]}  Ng7 {[%clk 0:02:16]} 14. Bh6 {[%clk 0:02:06]}  f6 {[%clk 0:02:01]} 15. Nd2 {[%clk 0:01:46]}  Rf7 {[%clk 0:02:00]} 16. f4 {[%clk 0:01:41]}  Nf8 {[%clk 0:01:54]} 17. fxe5 {[%clk 0:01:32]}  Bxe5 {[%clk 0:01:50]} 18. Ndf3 {[%clk 0:01:25]}  Bg4 {[%clk 0:01:48]} 19. Qd2 {[%clk 0:01:21]}  Nfe6 {[%clk 0:01:41]} 20. Nxe5 {[%clk 0:01:19]}  fxe5 {[%clk 0:01:41]} 21. Rxf7 {[%clk 0:01:17]}  Qxf7 {[%clk 0:01:41]} 22. Rf1 {[%clk 0:01:17]}  Qe7 {[%clk 0:01:41]} 23. h3 {[%clk 0:01:03]}  Bh5 {[%clk 0:01:37]} 24. b4 {[%clk 0:01:01]}  Rf8 {[%clk 0:01:20]} 25. Rxf8+ {[%clk 0:00:59]}  Nxf8 {[%clk 0:01:18]} 26. Bg5 {[%clk 0:00:56]}  Qd7 {[%clk 0:01:13]} 27. g4 {[%clk 0:00:55]}  Bxg4 {[%clk 0:01:11]} 28. hxg4 {[%clk 0:00:55]}  Qxg4 {[%clk 0:01:11]} 29. Kh2 {[%clk 0:00:52]}  Nfe6 {[%clk 0:01:10]} 30. Bf6 {[%clk 0:00:45]}  Nh5 {[%clk 0:01:07]} 31. Qf2 {[%clk 0:00:40]}  g5 {[%clk 0:00:49]} 32. Nf5 {[%clk 0:00:31]}  Nef4 {[%clk 0:00:38]} 33. Nh6+ {[%clk 0:00:31]} 1-0


[Site "https://www.chess.com"]